Workbook

Sheet Sheet1
A1: INSTRUCTIONS: Use this form when a single information collection document involves multiple reporting and recordkeeping requirements. The totals of the figures in cols. should be entered in item 13 of OMB-83-I: cols. (D) &/or (I) = 13a (respondent is only counted once); cols. F & I = 13b; cols. H & K = 13c. (F)Total/(D)Total = (E)Average (H)Total/(F)Total = (G)Average (K)Total/(I)Total = (J)Average NOTE: The columns will calculate automatically. If Col. E's response is something other than annually, i.e., 1/6 years, list as "1/6" & decimal will display. | I1: TITLE OF INFORMATION COLLECTION DOCUMENT | O1: OMB NO. | P1: 0560-0183
I3: Assignments of Payments and Joint Payment Authorization; Request for Waiver
O4: DATE PREPARED
O5: 2024-09-05
A10: IDENTIFICATION OF REPORTING OR RECORDKEEPING REQUIREMENT | H10: ANNUAL BURDEN
H12: REPORTS | N12: RECORDS | Q12: RESPONDENT COST
L14: TOTAL BURDEN HOURS | P14: TOTAL
G15: FORMS NO (S) | H15: NO. OF | I15: NO OF | J15: TOTAL ANNUAL | K15: HOURS | L15: (Col. F x G) | N15: NO. OF | O15: ANNUAL | P15: RECORD- | Q15: COST | R15: TOTAL
A16: SECTION OF | B16: DESCRIPTION | G16: (If "none" | H16: RESPONDENTS | I16: RESPONSES | J16: RESPONSES | K16: PER | L16: (H) | N16: RECORD- | O16: HOURS PER | P16: KEEPING HOURS | Q16: PER | R16: COST
A17: REGS. | G17: so state) | I17: PER | J17: (Col. D x E) | K17: RESPONSE | N17: KEEPERS | O17: RECORD- | P17: (Col. I x J) | Q17: HOUR | R17: (Col. H x L)
I18: RESPONDENT | L18: EXEMPT | M18: NON-EXEMPT | O18: KEEPER
A19: (A) | B19: (B) | G19: (C) | H19: (D) | I19: (E) | J19: (F) | K19: (G) | N19: (I) | O19: (J) | P19: (K) | Q19: (L) | R19: (M)
A20: 7 CFR 1404.4 | B20: Assignment of Payments | G20: CCC-36 or CCC-36 (SP) | H20: 46,522 | I20: 6 | J20: =SUM(H20*I20) -> 279,132 | K20: 0.17 | M20: =SUM(J20*K20) -> 46,522 | Q20: $57.76 | R20: =SUM(Q20*M20) -> 2,687,100
A21: None | B21: Joint Payment Authorization | G21: CCC-37 or CCC- 37 (SP) | H21: 3,162 | I21: 2 | J21: =SUM(H21*I21) -> 6,324 | K21: 0.17 | M21: =SUM(J21*K21) -> 1,054 | Q21: $57.76 | R21: =SUM(M21*Q21) -> 60,877
A22: 31 CFR Part 208 | B22: Request For FSA Payment of Federal Benefits by Check | G22: FPAC-FM-12 | H22: 152,928 | I22: 1 | J22: =SUM(H22*I22) -> 152,928 | K22: 0.17 | M22: 25,386 | Q22: $57.82 | R22: 1,467,821
B30: SUBTOTAL | J30: =SUM(J20:J22) -> 438,384 | L30: =SUM(L25:L29) -> 0 | M30: =SUM(M20:M22) -> 72,962 | P30: =SUM(P20:P29) -> 0.00 | R30: =SUM(R20:R29) -> 4,215,798
B31: TOTAL OF ALL PAGES | J31: =SUM(J30) -> 438,384 | M31: =SUM(M30) -> 72,962 | P31: =SUM(P30) -> 0.00 | R31: =SUM(R30) -> 4,215,798
A32: TOTAL - COLUMNS "F" AND "I" = OMB 83-I, 13b; COLUMNS "H" AND "K" = OMB 83-I, 13c | J32: =SUM(J31+N31) -> 438,384 | M32: =SUM(M31+P31) -> 72,962
